{"text_format":"1","workbook":"xlsx","n_sheets":2,"sheets":["Unos obračuna plaće","predložak_obračuna_plaća"],"not_rendered":{"charts":0,"images":0,"macros":1,"external_links":0,"defined_names":7,"comments":0,"pivot_tables":0},"unopened":[],"bounds":{"document_bytes":16777216,"sheet_cells":100000,"rows_first":2000,"rows_last":500,"rows_between":2000,"halvings":0,"cell_chars":16384,"cell_head_chars":4096},"cells_cut":0,"cells_raw":0,"read":"whole","date_system":"1900"}

{"sheet":"Unos obračuna plaće","index":0,"n_rows":13,"n_cols":24,"rows_kept":13,"cut":false,"hidden":false,"merged":[]}
[null,"KALKULATOR OBRAČUNA PLAĆA",null,null,null,null,null,null,null,null,"KRAJ RAZDOBLJA",41372,null,"NAZIV TVRTKE",null,"ADVENTURE WORKS"]
[]
[null,"ID","Ime i prezime zaposlenika","Redovni odrađeni sati","Godišnji odmor","Bolovanja","Prekovremeni sati","Stopa za prekovremene sate","Bruto plaća","Porezi i odbici","Drugi odbici","Neto plaća"," ","Satnica","Porezni status","Savezni dodatak","Županijski porez","Savezni porez na dohodak","Socijalno osiguranje","Zdravstveno osiguranje","Ukupno zadržano poreza","Odbitak za osiguranje","Ostali redovni odbici","Ukupno redovnih odbitaka"]
[null,1001,"Tony Smith",50,5,1,null,null,{"$f":"SUM(Zaposlenici[[#This Row],[Redovni odrađeni sati]:[Bolovanja]])*Zaposlenici[[#This Row],[Satnica]]+Zaposlenici[[#This Row],[Prekovremeni sati]]*Zaposlenici[[#This Row],[Stopa za prekovremene sate]]","v":560},{"$f":"Zaposlenici[[#This Row],[Bruto plaća]]*Zaposlenici[[#This Row],[Ukupno zadržano poreza]] + Zaposlenici[[#This Row],[Ukupno redovnih odbitaka]]","v":273.08000000000004},20,{"$f":"Zaposlenici[[#This Row],[Bruto plaća]]-Zaposlenici[[#This Row],[Porezi i odbici]]-Zaposlenici[[#This Row],[Drugi odbici]]","v":266.91999999999996},null,10,1,4,2.3E-2,0.28000000000000003,6.3E-2,1.4500000000000001E-2,{"$f":"SUM(Zaposlenici[[#This Row],[Županijski porez]:[Zdravstveno osiguranje]])","v":0.38050000000000006},20,40,{"$f":"SUM(Zaposlenici[[#This Row],[Odbitak za osiguranje]:[Ostali redovni odbici]])","v":60}]
[null,1002,"David Jones",40,null,null,null,null,{"$f":"SUM(Zaposlenici[[#This Row],[Redovni odrađeni sati]:[Bolovanja]])*Zaposlenici[[#This Row],[Satnica]]+Zaposlenici[[#This Row],[Prekovremeni sati]]*Zaposlenici[[#This Row],[Stopa za prekovremene sate]]","v":320},{"$f":"Zaposlenici[[#This Row],[Bruto plaća]]*Zaposlenici[[#This Row],[Ukupno zadržano poreza]] + Zaposlenici[[#This Row],[Ukupno redovnih odbitaka]]","v":131.76000000000002},null,{"$f":"Zaposlenici[[#This Row],[Bruto plaća]]-Zaposlenici[[#This Row],[Porezi i odbici]]-Zaposlenici[[#This Row],[Drugi odbici]]","v":188.23999999999998},null,8,1,1,2.3E-2,0.28000000000000003,6.3E-2,1.4500000000000001E-2,{"$f":"SUM(Zaposlenici[[#This Row],[Županijski porez]:[Zdravstveno osiguranje]])","v":0.38050000000000006},0,10,{"$f":"SUM(Zaposlenici[[#This Row],[Odbitak za osiguranje]:[Ostali redovni odbici]])","v":10}]
[null,1003,"Denise Smith",35,3,null,null,null,{"$f":"SUM(Zaposlenici[[#This Row],[Redovni odrađeni sati]:[Bolovanja]])*Zaposlenici[[#This Row],[Satnica]]+Zaposlenici[[#This Row],[Prekovremeni sati]]*Zaposlenici[[#This Row],[Stopa za prekovremene sate]]","v":532},{"$f":"Zaposlenici[[#This Row],[Bruto plaća]]*Zaposlenici[[#This Row],[Ukupno zadržano poreza]] + Zaposlenici[[#This Row],[Ukupno redovnih odbitaka]]","v":240.42600000000004},null,{"$f":"Zaposlenici[[#This Row],[Bruto plaća]]-Zaposlenici[[#This Row],[Porezi i odbici]]-Zaposlenici[[#This Row],[Drugi odbici]]","v":291.57399999999996},null,14,1,3,2.3E-2,0.28000000000000003,6.3E-2,1.4500000000000001E-2,{"$f":"SUM(Zaposlenici[[#This Row],[Županijski porez]:[Zdravstveno osiguranje]])","v":0.38050000000000006},18,20,{"$f":"SUM(Zaposlenici[[#This Row],[Odbitak za osiguranje]:[Ostali redovni odbici]])","v":38}]
[null,1008,"Sebastien Motte",50,5,1,null,null,{"$f":"SUM(Zaposlenici[[#This Row],[Redovni odrađeni sati]:[Bolovanja]])*Zaposlenici[[#This Row],[Satnica]]+Zaposlenici[[#This Row],[Prekovremeni sati]]*Zaposlenici[[#This Row],[Stopa za prekovremene sate]]","v":1120},{"$f":"Zaposlenici[[#This Row],[Bruto plaća]]*Zaposlenici[[#This Row],[Ukupno zadržano poreza]] + Zaposlenici[[#This Row],[Ukupno redovnih odbitaka]]","v":441.16000000000008},null,{"$f":"Zaposlenici[[#This Row],[Bruto plaća]]-Zaposlenici[[#This Row],[Porezi i odbici]]-Zaposlenici[[#This Row],[Drugi odbici]]","v":678.83999999999992},null,20,1,0,2.3E-2,0.28000000000000003,6.3E-2,1.4500000000000001E-2,{"$f":"SUM(Zaposlenici[[#This Row],[Županijski porez]:[Zdravstveno osiguranje]])","v":0.38050000000000006},15,null,{"$f":"SUM(Zaposlenici[[#This Row],[Odbitak za osiguranje]:[Ostali redovni odbici]])","v":15}]
[null,1011,"Isabelle Scemla",40,null,null,2,15,{"$f":"SUM(Zaposlenici[[#This Row],[Redovni odrađeni sati]:[Bolovanja]])*Zaposlenici[[#This Row],[Satnica]]+Zaposlenici[[#This Row],[Prekovremeni sati]]*Zaposlenici[[#This Row],[Stopa za prekovremene sate]]","v":430},{"$f":"Zaposlenici[[#This Row],[Bruto plaća]]*Zaposlenici[[#This Row],[Ukupno zadržano poreza]] + Zaposlenici[[#This Row],[Ukupno redovnih odbitaka]]","v":223.61500000000004},null,{"$f":"Zaposlenici[[#This Row],[Bruto plaća]]-Zaposlenici[[#This Row],[Porezi i odbici]]-Zaposlenici[[#This Row],[Drugi odbici]]","v":206.38499999999996},null,10,1,0,2.3E-2,0.28000000000000003,6.3E-2,1.4500000000000001E-2,{"$f":"SUM(Zaposlenici[[#This Row],[Županijski porez]:[Zdravstveno osiguranje]])","v":0.38050000000000006},20,40,{"$f":"SUM(Zaposlenici[[#This Row],[Odbitak za osiguranje]:[Ostali redovni odbici]])","v":60}]
[null,1012,"David Bristol",40,5,1,null,null,{"$f":"SUM(Zaposlenici[[#This Row],[Redovni odrađeni sati]:[Bolovanja]])*Zaposlenici[[#This Row],[Satnica]]+Zaposlenici[[#This Row],[Prekovremeni sati]]*Zaposlenici[[#This Row],[Stopa za prekovremene sate]]","v":552},{"$f":"Zaposlenici[[#This Row],[Bruto plaća]]*Zaposlenici[[#This Row],[Ukupno zadržano poreza]] + Zaposlenici[[#This Row],[Ukupno redovnih odbitaka]]","v":270.03600000000006},null,{"$f":"Zaposlenici[[#This Row],[Bruto plaća]]-Zaposlenici[[#This Row],[Porezi i odbici]]-Zaposlenici[[#This Row],[Drugi odbici]]","v":281.96399999999994},null,12,1,4,2.3E-2,0.28000000000000003,6.3E-2,1.4500000000000001E-2,{"$f":"SUM(Zaposlenici[[#This Row],[Županijski porez]:[Zdravstveno osiguranje]])","v":0.38050000000000006},20,40,{"$f":"SUM(Zaposlenici[[#This Row],[Odbitak za osiguranje]:[Ostali redovni odbici]])","v":60}]
[null,1025,"Anne Weiler",36,null,2,1,18,{"$f":"SUM(Zaposlenici[[#This Row],[Redovni odrađeni sati]:[Bolovanja]])*Zaposlenici[[#This Row],[Satnica]]+Zaposlenici[[#This Row],[Prekovremeni sati]]*Zaposlenici[[#This Row],[Stopa za prekovremene sate]]","v":474},{"$f":"Zaposlenici[[#This Row],[Bruto plaća]]*Zaposlenici[[#This Row],[Ukupno zadržano poreza]] + Zaposlenici[[#This Row],[Ukupno redovnih odbitaka]]","v":225.35700000000003},25,{"$f":"Zaposlenici[[#This Row],[Bruto plaća]]-Zaposlenici[[#This Row],[Porezi i odbici]]-Zaposlenici[[#This Row],[Drugi odbici]]","v":223.64299999999997},null,12,1,2,2.3E-2,0.28000000000000003,6.3E-2,1.4500000000000001E-2,{"$f":"SUM(Zaposlenici[[#This Row],[Županijski porez]:[Zdravstveno osiguranje]])","v":0.38050000000000006},25,20,{"$f":"SUM(Zaposlenici[[#This Row],[Odbitak za osiguranje]:[Ostali redovni odbici]])","v":45}]
[null,1032,"Luka Abrus",40,5,1,null,null,{"$f":"SUM(Zaposlenici[[#This Row],[Redovni odrađeni sati]:[Bolovanja]])*Zaposlenici[[#This Row],[Satnica]]+Zaposlenici[[#This Row],[Prekovremeni sati]]*Zaposlenici[[#This Row],[Stopa za prekovremene sate]]","v":460},{"$f":"Zaposlenici[[#This Row],[Bruto plaća]]*Zaposlenici[[#This Row],[Ukupno zadržano poreza]] + Zaposlenici[[#This Row],[Ukupno redovnih odbitaka]]","v":175.03000000000003},50,{"$f":"Zaposlenici[[#This Row],[Bruto plaća]]-Zaposlenici[[#This Row],[Porezi i odbici]]-Zaposlenici[[#This Row],[Drugi odbici]]","v":234.96999999999997},null,10,1,3,2.3E-2,0.28000000000000003,6.3E-2,1.4500000000000001E-2,{"$f":"SUM(Zaposlenici[[#This Row],[Županijski porez]:[Zdravstveno osiguranje]])","v":0.38050000000000006},null,null,{"$f":"SUM(Zaposlenici[[#This Row],[Odbitak za osiguranje]:[Ostali redovni odbici]])","v":0}]
[null,1049,"David Ludwig",40,1,null,null,null,{"$f":"SUM(Zaposlenici[[#This Row],[Redovni odrađeni sati]:[Bolovanja]])*Zaposlenici[[#This Row],[Satnica]]+Zaposlenici[[#This Row],[Prekovremeni sati]]*Zaposlenici[[#This Row],[Stopa za prekovremene sate]]","v":615},{"$f":"Zaposlenici[[#This Row],[Bruto plaća]]*Zaposlenici[[#This Row],[Ukupno zadržano poreza]] + Zaposlenici[[#This Row],[Ukupno redovnih odbitaka]]","v":259.00750000000005},23,{"$f":"Zaposlenici[[#This Row],[Bruto plaća]]-Zaposlenici[[#This Row],[Porezi i odbici]]-Zaposlenici[[#This Row],[Drugi odbici]]","v":332.99249999999995},null,15,1,2,2.3E-2,0.28000000000000003,6.3E-2,1.4500000000000001E-2,{"$f":"SUM(Zaposlenici[[#This Row],[Županijski porez]:[Zdravstveno osiguranje]])","v":0.38050000000000006},25,null,{"$f":"SUM(Zaposlenici[[#This Row],[Odbitak za osiguranje]:[Ostali redovni odbici]])","v":25}]
[null,"Ukupno",{"$f":"SUBTOTAL(103,Zaposlenici[Ime i prezime zaposlenika])","v":9},{"$f":"SUBTOTAL(109,Zaposlenici[Redovni odrađeni sati])","v":371},{"$f":"SUBTOTAL(109,Zaposlenici[Godišnji odmor])","v":24},{"$f":"SUBTOTAL(109,Zaposlenici[Bolovanja])","v":6},{"$f":"SUBTOTAL(109,Zaposlenici[Prekovremeni sati])","v":3},null,{"$f":"SUBTOTAL(109,Zaposlenici[Bruto plaća])","v":5063},{"$f":"SUBTOTAL(109,Zaposlenici[Porezi i odbici])","v":2239.4715000000001},{"$f":"SUBTOTAL(109,Zaposlenici[Drugi odbici])","v":118},{"$f":"SUBTOTAL(109,Zaposlenici[Neto plaća])","v":2705.5284999999994},null,null,null,null,null,null,null,null,null,{"$f":"SUBTOTAL(109,Zaposlenici[Odbitak za osiguranje])","v":143},{"$f":"SUBTOTAL(109,Zaposlenici[Ostali redovni odbici])","v":170},{"$f":"SUBTOTAL(109,Zaposlenici[Ukupno redovnih odbitaka])","v":313}]

{"sheet":"predložak_obračuna_plaća","index":1,"n_rows":47,"n_cols":13,"rows_kept":47,"cut":false,"hidden":true,"merged":[[45,2,45,3],[32,2,32,3],[33,2,33,3],[20,2,20,3],[21,2,21,3],[2,3,2,4],[14,3,14,4],[26,3,26,4],[38,3,38,4],[44,2,44,3],[8,2,8,3],[9,2,9,3],[2,7,2,8],[14,7,14,8],[26,7,26,8],[38,7,38,8],[38,11,38,12],[26,11,26,12],[14,11,14,12],[2,11,2,12]]}
[]
[null,null,{"$f":"NazivTvrtke","v":"ADVENTURE WORKS"}]
[null,null,"RAZDOBLJE",{"$f":"KrajRazdoblja","v":41372},null,null,"IME I PREZIME",{"$f":"IFERROR(INDEX(Zaposlenici[Ime i prezime zaposlenika],Lista),\"\")","v":"Tony Smith"},null,null,"ID ZAPOSLENIKA",{"$f":"IFERROR(INDEX(Zaposlenici[ID],Lista),\"\")","v":1001}]
[null,null,"Porezni status",null,{"$f":"IFERROR(INDEX(Zaposlenici[Porezni status],Lista),\"\")","v":1},null,"Savezni dodatak (iz W-4)",null,{"$f":"IFERROR(INDEX(Zaposlenici[Savezni dodatak],Lista),\"\")","v":4},null,"Odrađeni sati",null,{"$f":"IFERROR(INDEX(Zaposlenici[Redovni odrađeni sati],Lista),\"\")","v":50}]
[null,null,"Cijena po satu",null,{"$f":"IFERROR(INDEX(Zaposlenici[Satnica],Lista),\"\")","v":10},null,"Stopa za prekovremene sate",null,{"$f":"IFERROR(INDEX(Zaposlenici[Stopa za prekovremene sate],Lista),\"\")","v":0},null,"Bolovanja",null,{"$f":"IFERROR(INDEX(Zaposlenici[Bolovanja],Lista),\"\")","v":1}]
[null,null,"Socijalno osiguranje",null,{"$f":"IFERROR(INDEX(Zaposlenici[Socijalno osiguranje],Lista)  *  INDEX(Zaposlenici[Bruto plaća],Lista),\"\")","v":35.28},null,"Savezni porez na dohodak",null,{"$f":"IFERROR(INDEX(Zaposlenici[Savezni porez na dohodak],Lista)  *  INDEX(Zaposlenici[Bruto plaća],Lista),\"\")","v":156.80000000000001},null,"Godišnji odmor",null,{"$f":"IFERROR(INDEX(Zaposlenici[Godišnji odmor],Lista),\"\")","v":5}]
[null,null,"Zdravstveno osiguranje",null,{"$f":"IFERROR(INDEX(Zaposlenici[Zdravstveno osiguranje],Lista)  *  INDEX(Zaposlenici[Bruto plaća],Lista),\"\")","v":8.120000000000001},null,"Županijski porez ",null,{"$f":"IFERROR(INDEX(Zaposlenici[Županijski porez],Lista)  *  INDEX(Zaposlenici[Bruto plaća],Lista),\"\")","v":12.879999999999999},null,"Prekovremeni sati",null,{"$f":"IFERROR(INDEX(Zaposlenici[Prekovremeni sati],Lista),\"\")","v":0}]
[null,null,"Odbitak za osiguranje",null,{"$f":"IFERROR(INDEX(Zaposlenici[Odbitak za osiguranje],Lista),\"\")","v":20},null,"Ostali redovni odbici",null,{"$f":"IFERROR(INDEX(Zaposlenici[Ostali redovni odbici],Lista),\"\")","v":40},null,"Bruto plaća",null,{"$f":"IFERROR(INDEX(Zaposlenici[Bruto plaća],Lista),\"\")","v":560}]
[null,null,"Ukupno poreza i",null,{"$f":"IFERROR(INDEX(Zaposlenici[Porezi i odbici],Lista),\"\")","v":273.08000000000004},null,"Ostali odbici",null,{"$f":"IFERROR(INDEX(Zaposlenici[Drugi odbici],Lista),\"\")","v":20},null,"Ukupno poreza i odbitaka ",null,{"$f":"IFERROR(INDEX(Zaposlenici[Porezi i odbici],Lista)  +  INDEX(Zaposlenici[Drugi odbici],Lista),\"\")","v":293.08000000000004}]
[null,null,"redovitih odbitaka"]
[null,null,null,null,null,null,null,null,null,null,"NETO PLAĆA",null,{"$f":"IFERROR(INDEX(Zaposlenici[Neto plaća],Lista),\"\")","v":266.91999999999996}]
[]
[]
[null,null,{"$f":"NazivTvrtke","v":"ADVENTURE WORKS"}]
[null,null,"RAZDOBLJE",{"$f":"KrajRazdoblja","v":41372},null,null,"IME I PREZIME",{"$f":"IFERROR(INDEX(Zaposlenici[Ime i prezime zaposlenika],Lista),\"\")","v":"David Jones"},null,null,"ID ZAPOSLENIKA",{"$f":"IFERROR(INDEX(Zaposlenici[ID],Lista),\"\")","v":1002}]
[null,null,"Porezni status",null,{"$f":"IFERROR(INDEX(Zaposlenici[Porezni status],Lista),\"\")","v":1},null,"Savezni dodatak (iz W-4)",null,{"$f":"IFERROR(INDEX(Zaposlenici[Savezni dodatak],Lista),\"\")","v":1},null,"Odrađeni sati",null,{"$f":"IFERROR(INDEX(Zaposlenici[Redovni odrađeni sati],Lista),\"\")","v":40}]
[null,null,"Cijena po satu",null,{"$f":"IFERROR(INDEX(Zaposlenici[Satnica],Lista),\"\")","v":8},null,"Stopa za prekovremene sate",null,{"$f":"IFERROR(INDEX(Zaposlenici[Stopa za prekovremene sate],Lista),\"\")","v":0},null,"Bolovanja",null,{"$f":"IFERROR(INDEX(Zaposlenici[Bolovanja],Lista),\"\")","v":0}]
[null,null,"Socijalno osiguranje",null,{"$f":"IFERROR(INDEX(Zaposlenici[Socijalno osiguranje],Lista)  *  INDEX(Zaposlenici[Bruto plaća],Lista),\"\")","v":20.16},null,"Savezni porez na dohodak",null,{"$f":"IFERROR(INDEX(Zaposlenici[Savezni porez na dohodak],Lista)  *  INDEX(Zaposlenici[Bruto plaća],Lista),\"\")","v":89.600000000000009},null,"Godišnji odmor",null,{"$f":"IFERROR(INDEX(Zaposlenici[Godišnji odmor],Lista),\"\")","v":0}]
[null,null,"Zdravstveno osiguranje",null,{"$f":"IFERROR(INDEX(Zaposlenici[Zdravstveno osiguranje],Lista)  *  INDEX(Zaposlenici[Bruto plaća],Lista),\"\")","v":4.6400000000000006},null,"Županijski porez ",null,{"$f":"IFERROR(INDEX(Zaposlenici[Županijski porez],Lista)  *  INDEX(Zaposlenici[Bruto plaća],Lista),\"\")","v":7.3599999999999994},null,"Prekovremeni sati",null,{"$f":"IFERROR(INDEX(Zaposlenici[Prekovremeni sati],Lista),\"\")","v":0}]
[null,null,"Odbitak za osiguranje",null,{"$f":"IFERROR(INDEX(Zaposlenici[Odbitak za osiguranje],Lista),\"\")","v":0},null,"Ostali redovni odbici",null,{"$f":"IFERROR(INDEX(Zaposlenici[Ostali redovni odbici],Lista),\"\")","v":10},null,"Bruto plaća",null,{"$f":"IFERROR(INDEX(Zaposlenici[Bruto plaća],Lista),\"\")","v":320}]
[null,null,"Ukupno poreza i",null,{"$f":"IFERROR(INDEX(Zaposlenici[Porezi i odbici],Lista),\"\")","v":131.76000000000002},null,"Ostali odbici",null,{"$f":"IFERROR(INDEX(Zaposlenici[Drugi odbici],Lista),\"\")","v":0},null,"Ukupno poreza i odbitaka ",null,{"$f":"IFERROR(INDEX(Zaposlenici[Porezi i odbici],Lista)  +  INDEX(Zaposlenici[Drugi odbici],Lista),\"\")","v":131.76000000000002}]
[null,null,"redovitih odbitaka"]
[null,null,null,null,null,null,null,null,null,null,"NETO PLAĆA",null,{"$f":"IFERROR(INDEX(Zaposlenici[Neto plaća],Lista),\"\")","v":188.23999999999998}]
[]
[]
[null,null,{"$f":"NazivTvrtke","v":"ADVENTURE WORKS"}]
[null,null,"RAZDOBLJE",{"$f":"KrajRazdoblja","v":41372},null,null,"IME I PREZIME",{"$f":"IFERROR(INDEX(Zaposlenici[Ime i prezime zaposlenika],Lista),\"\")","v":"Denise Smith"},null,null,"ID ZAPOSLENIKA",{"$f":"IFERROR(INDEX(Zaposlenici[ID],Lista),\"\")","v":1003}]
[null,null,"Porezni status",null,{"$f":"IFERROR(INDEX(Zaposlenici[Porezni status],Lista),\"\")","v":1},null,"Savezni dodatak (iz W-4)",null,{"$f":"IFERROR(INDEX(Zaposlenici[Savezni dodatak],Lista),\"\")","v":3},null,"Odrađeni sati",null,{"$f":"IFERROR(INDEX(Zaposlenici[Redovni odrađeni sati],Lista),\"\")","v":35}]
[null,null,"Cijena po satu",null,{"$f":"IFERROR(INDEX(Zaposlenici[Satnica],Lista),\"\")","v":14},null,"Stopa za prekovremene sate",null,{"$f":"IFERROR(INDEX(Zaposlenici[Stopa za prekovremene sate],Lista),\"\")","v":0},null,"Bolovanja",null,{"$f":"IFERROR(INDEX(Zaposlenici[Bolovanja],Lista),\"\")","v":0}]
[null,null,"Socijalno osiguranje",null,{"$f":"IFERROR(INDEX(Zaposlenici[Socijalno osiguranje],Lista)  *  INDEX(Zaposlenici[Bruto plaća],Lista),\"\")","v":33.515999999999998},null,"Savezni porez na dohodak",null,{"$f":"IFERROR(INDEX(Zaposlenici[Savezni porez na dohodak],Lista)  *  INDEX(Zaposlenici[Bruto plaća],Lista),\"\")","v":148.96},null,"Godišnji odmor",null,{"$f":"IFERROR(INDEX(Zaposlenici[Godišnji odmor],Lista),\"\")","v":3}]
[null,null,"Zdravstveno osiguranje",null,{"$f":"IFERROR(INDEX(Zaposlenici[Zdravstveno osiguranje],Lista)  *  INDEX(Zaposlenici[Bruto plaća],Lista),\"\")","v":7.7140000000000004},null,"Županijski porez ",null,{"$f":"IFERROR(INDEX(Zaposlenici[Županijski porez],Lista)  *  INDEX(Zaposlenici[Bruto plaća],Lista),\"\")","v":12.236000000000001},null,"Prekovremeni sati",null,{"$f":"IFERROR(INDEX(Zaposlenici[Prekovremeni sati],Lista),\"\")","v":0}]
[null,null,"Odbitak za osiguranje",null,{"$f":"IFERROR(INDEX(Zaposlenici[Odbitak za osiguranje],Lista),\"\")","v":18},null,"Ostali redovni odbici",null,{"$f":"IFERROR(INDEX(Zaposlenici[Ostali redovni odbici],Lista),\"\")","v":20},null,"Bruto plaća",null,{"$f":"IFERROR(INDEX(Zaposlenici[Bruto plaća],Lista),\"\")","v":532}]
[null,null,"Ukupno poreza i",null,{"$f":"IFERROR(INDEX(Zaposlenici[Porezi i odbici],Lista),\"\")","v":240.42600000000004},null,"Ostali odbici",null,{"$f":"IFERROR(INDEX(Zaposlenici[Drugi odbici],Lista),\"\")","v":0},null,"Ukupno poreza i odbitaka ",null,{"$f":"IFERROR(INDEX(Zaposlenici[Porezi i odbici],Lista)  +  INDEX(Zaposlenici[Drugi odbici],Lista),\"\")","v":240.42600000000004}]
[null,null,"redovitih odbitaka"]
[null,null,null,null,null,null,null,null,null,null,"NETO PLAĆA",null,{"$f":"IFERROR(INDEX(Zaposlenici[Neto plaća],Lista),\"\")","v":291.57399999999996}]
[]
[]
[null,null,{"$f":"NazivTvrtke","v":"ADVENTURE WORKS"}]
[null,null,"RAZDOBLJE",{"$f":"KrajRazdoblja","v":41372},null,null,"IME I PREZIME",{"$f":"IFERROR(INDEX(Zaposlenici[Ime i prezime zaposlenika],Lista),\"\")","v":"Sebastien Motte"},null,null,"ID ZAPOSLENIKA",{"$f":"IFERROR(INDEX(Zaposlenici[ID],Lista),\"\")","v":1008}]
[null,null,"Porezni status",null,{"$f":"IFERROR(INDEX(Zaposlenici[Porezni status],Lista),\"\")","v":1},null,"Savezni dodatak (iz W-4)",null,{"$f":"IFERROR(INDEX(Zaposlenici[Savezni dodatak],Lista),\"\")","v":0},null,"Odrađeni sati",null,{"$f":"IFERROR(INDEX(Zaposlenici[Redovni odrađeni sati],Lista),\"\")","v":50}]
[null,null,"Cijena po satu",null,{"$f":"IFERROR(INDEX(Zaposlenici[Satnica],Lista),\"\")","v":20},null,"Stopa za prekovremene sate",null,{"$f":"IFERROR(INDEX(Zaposlenici[Stopa za prekovremene sate],Lista),\"\")","v":0},null,"Bolovanja",null,{"$f":"IFERROR(INDEX(Zaposlenici[Bolovanja],Lista),\"\")","v":1}]
[null,null,"Socijalno osiguranje",null,{"$f":"IFERROR(INDEX(Zaposlenici[Socijalno osiguranje],Lista)  *  INDEX(Zaposlenici[Bruto plaća],Lista),\"\")","v":70.56},null,"Savezni porez na dohodak",null,{"$f":"IFERROR(INDEX(Zaposlenici[Savezni porez na dohodak],Lista)  *  INDEX(Zaposlenici[Bruto plaća],Lista),\"\")","v":313.60000000000002},null,"Godišnji odmor",null,{"$f":"IFERROR(INDEX(Zaposlenici[Godišnji odmor],Lista),\"\")","v":5}]
[null,null,"Zdravstveno osiguranje",null,{"$f":"IFERROR(INDEX(Zaposlenici[Zdravstveno osiguranje],Lista)  *  INDEX(Zaposlenici[Bruto plaća],Lista),\"\")","v":16.240000000000002},null,"Županijski porez ",null,{"$f":"IFERROR(INDEX(Zaposlenici[Županijski porez],Lista)  *  INDEX(Zaposlenici[Bruto plaća],Lista),\"\")","v":25.759999999999998},null,"Prekovremeni sati",null,{"$f":"IFERROR(INDEX(Zaposlenici[Prekovremeni sati],Lista),\"\")","v":0}]
[null,null,"Odbitak za osiguranje",null,{"$f":"IFERROR(INDEX(Zaposlenici[Odbitak za osiguranje],Lista),\"\")","v":15},null,"Ostali redovni odbici",null,{"$f":"IFERROR(INDEX(Zaposlenici[Ostali redovni odbici],Lista),\"\")","v":0},null,"Bruto plaća",null,{"$f":"IFERROR(INDEX(Zaposlenici[Bruto plaća],Lista),\"\")","v":1120}]
[null,null,"Ukupno poreza i",null,{"$f":"IFERROR(INDEX(Zaposlenici[Porezi i odbici],Lista),\"\")","v":441.16000000000008},null,"Ostali odbici",null,{"$f":"IFERROR(INDEX(Zaposlenici[Drugi odbici],Lista),\"\")","v":0},null,"Ukupno poreza i odbitaka ",null,{"$f":"IFERROR(INDEX(Zaposlenici[Porezi i odbici],Lista)  +  INDEX(Zaposlenici[Drugi odbici],Lista),\"\")","v":441.16000000000008}]
[null,null,"redovitih odbitaka"]
[null,null,null,null,null,null,null,null,null,null,"NETO PLAĆA",null,{"$f":"IFERROR(INDEX(Zaposlenici[Neto plaća],Lista),\"\")","v":678.83999999999992}]